Cogmind - Beta 11.1 *** ADVENTURER MODE // 2022.09.06 @ 16:32:21 Player: Prof Griz Result: Destroyed by Y-54 Guardian with Flak Gun Performance ------------- Evolutions (4) 2000 Regions Visited (6) 1200 Robots Destroyed (14) 70 Value Destroyed (329) 329 Prototype IDs (0) 0 Alien Tech Used (0) 0 Bonus (0) 0 TOTAL SCORE: 3599 Bonus ------- None Cogmind --------- Core Integrity 0/850 Matter 300/300 Energy 100/100 System Corruption 3% Temperature Cool (6) Movement Core (100) Ox1 Location -6/Extension Parts ------- > --- POWER (4) -------- (None) > --- PROPULSION (5) --- (None) > --- UTILITY (4) ------ Small Storage Unit > --- WEAPON (2) ------- (None) > --- INVENTORY (8) ---- Heat Sink Improved Heat Sink Huge Storage Unit Recoil Stabilizer Peak State ------------ > --- POWER ------------ Deuterium Engine Deuterium Engine Deuterium Engine Deuterium Engine > --- PROPULSION ------- Light Treads Light Treads > --- UTILITY ---------- Small Storage Unit Medium Battery Shield Generator Long-range Tractor Beam > --- WEAPON ----------- Shock Rifle Light Assault Rifle > --- INVENTORY -------- Heat Sink Improved Heat Sink Huge Storage Unit Recoil Stabilizer [Rating: 25] Favorites ----------- Power Ion Engine Engine Ion Engine Propulsion Light Treads Treads Light Treads Leg Aluminum Leg Wheel Compact Wheel Utility Small Storage Unit Device Shield Generator Storage Small Storage Unit Weapon Light Assault Rifle Energy Gun Shock Rifle Ballistic Gun Light Assault Rifle Build | -11 -10 -9 -8 -7 -6 -6 ------- Run | Scr Mat Mat Mat Fac Fac Ext Slots Evolved 8 | . . 2 2 2 2 . Power 3 | . . 1 . 1 1 . Propulsion 3 | . . 1 1 . 1 . Utility 2 | . . . 1 1 . . Weapon . | . . . . . . . Parts Attached 29 | 6 9 1 1 5 . 7 Power 6 | 1 . . . 1 . 4 Engine 6 | 1 . . . 1 . 4 Core . | . . . . . . . Reactor . | . . . . . . . Propulsion 9 | 4 2 . . . . 3 Treads 4 | 2 2 . . . . . Leg 2 | 2 . . . . . . Wheel 3 | . . . . . . 3 Hover . | . . . . . . . Flight . | . . . . . . . Utility 7 | 1 3 1 1 1 . . Device 2 | . . 1 1 . . . Storage 5 | 1 3 . . 1 . . Processor . | . . . . . . . Hackware . | . . . . . . . Protection . | . . . . . . . Artifact . | . . . . . . . Weapon 7 | . 4 . . 3 . . Energy Gun 6 | . 4 . . 2 . . Energy Cannon . | . . . . . . . Ballistic Gun 1 | . . . . 1 . . Ballistic Cannon . | . . . . . . . Launcher . | . . . . . . . Special Weapon . | . . . . . . . Impact Weapon . | . . . . . . . Slashing Weapon . | . . . . . . . Piercing Weapon . | . . . . . . . Special Melee Weapon . | . . . . . . . Unidentified Prototypes . | . . . . . . . Parts Lost 16 | . 1 . . . . 15 Power 5 | . . . . . . 5 Propulsion 5 | . . . . . . 5 Utility 3 | . . . . . . 3 Weapon 3 | . 1 . . . . 2 Highest Loss Streak 14 | . 1 . . . . 14 To Critical Strikes . | . . . . . . . Average Slot Usage (%) 67 | . 74 77 71 73 66 56 Engine 12 | . 14 11 9 13 13 11 Treads 17 | . 28 22 18 15 13 9 Device 8 | . . 4 17 15 13 9 Storage 13 | . 16 17 9 13 13 11 Energy Gun 10 | . 14 22 18 8 6 4 Ballistic Gun 3 | . . . . 5 6 5 Naked Turns . | . . . . . . . Heaviest Build 50 | 10 15 15 16 22 22 50 Greatest Support 40 | 40 40 40 40 40 40 40 Greatest Overweight (x) 2 | 1 . . . . . 2 Average Overweight (x) . | . . . . . . . Largest Inventory Capacity 25 | 8 25 8 8 8 8 8 Average Capacity 7 | 6 8 8 8 8 8 8 Most Carried 8 | 5 6 6 7 7 4 8 Average Carried 4 | 3 4 5 6 3 4 4 Final Capacity 8 | 8 8 8 8 8 8 8 Final Carried 6 | 4 5 6 6 4 4 4 Class Distribution -------------------- 95% | Mutant 4% | Generator-Mutant Dominant Class ---------------- Mutant | -10/Materials Mutant | -9/Materials Mutant | -8/Materials Mutant | -7/Factory Mutant | -6/Factory Mutant | -6/Extension Resources | -11 -10 -9 -8 -7 -6 -6 ----------- Run | Scr Mat Mat Mat Fac Fac Ext Matter Collected 460 | 237 113 . . . . 110 Remotely 110 | . . . . . . 110 Salvage Created 558 | . 239 54 . . . 265 Parts 36 | . 17 3 . . . 16 Haulers Intercepted 1 | . 1 . . . . . Recyclers Shooed 1 | . . . . . . 1 Parts Field Recycled . | . . . . . . . Retrieved Matter . | . . . . . . . Parts Self-Destructed . | . . . . . . . Prevented . | . . . . . . . Kills | -11 -10 -9 -8 -7 -6 -6 ------- Run | Scr Mat Mat Mat Fac Fac Ext Combat Hostiles Destroyed 8 | . 6 1 . . . 1 Guns 4 | . 3 1 . . . . AOE 3 | . 3 . . . . . Classes Destroyed 8 | . 5 1 . . . 2 Builder 1 | . . . . . . 1 Tunneler 1 | . 1 . . . . . Hauler 1 | . 1 . . . . . Recycler 1 | . . . . . . 1 Watcher 2 | . 1 . . . . 1 Swarmer 3 | . 3 . . . . . Grunt 3 | . 3 . . . . . Sentry 2 | . . 1 . . . 1 Best Kill Streak 5 | . 5 1 . . . 1 Combat Bots Only 3 | . 3 1 . . . 1 Max Kills in Single Turn 5 | . 5 1 . . . 1 Gunslinging . | . . . . . . . Exploded 3 | . 3 . . . . . Melee . | . . . . . . . Uniques/NPCs Destroyed . | . . . . . . . Combat | -11 -10 -9 -8 -7 -6 -6 -------- Run | Scr Mat Mat Mat Fac Fac Ext Damage Taken 2212 | . 258 111 82 . . 1761 Core 917 | . 25 18 23 . . 851 Absorbed by Shields 266 | . . 28 29 . . 209 Core Remaining (%) 96 | 100 90 95 95 100 . . Volleys Fired 37 | . 14 5 . . . 18 Largest 2 | . 2 2 . . . 2 Hottest 90 | . 90 90 . . . 70 Shots Fired 69 | . 25 10 . . . 34 Gun 69 | . 25 10 . . . 34 Cannon . | . . . . . . . Launcher . | . . . . . . . Special . | . . . . . . . Kinetic 18 | . . . . . . 18 Thermal 32 | . 22 10 . . . . Explosive . | . . . . . . . Electromagnetic 19 | . 3 . . . . 16 Robot Hit Streak 22 | . 17 22 . . . 11 Robot Miss Streak 3 | . 3 1 . . . 1 Penetration Max . | . . . . . . . Secondary Targets 1 | . 1 . . . . . Max Gunslinging Chain 1 | . 1 . . . . . Shots Hit Robots 57 | . 21 8 . . . 28 Core Hits 27 | . 12 2 . . . 13 Critical Kills . | . . . . . . . Critical Parts Destroyed . | . . . . . . . Critical Strikes 1 | . 1 . . . . . Corrupt 1 | . 1 . . . . . Melee Attacks . | . . . . . . . Impact . | . . . . . . . Slashing . | . . . . . . . Piercing . | . . . . . . . Sneak Attacks . | . . . . . . . Combat Hostiles . | . . . . . . . Follow-up Attacks . | . . . . . . . Damage Inflicted 1128 | . 640 91 . . . 397 Guns 671 | . 258 91 . . . 322 Cannons . | . . . . . . . Explosions 412 | . 382 . . . . 30 Melee . | . . . . . . . Ramming 45 | . . . . . . 45 Kinetic 126 | . . . . . . 126 Thermal 725 | . 604 91 . . . 30 Explosive . | . . . . . . . Electromagnetic 232 | . 36 . . . . 196 Impact . | . . . . . . . Slashing . | . . . . . . . Piercing . | . . . . . . . Highest Corruption 3 | . . . . . . 3 Average Corruption 2 | . . . . . . 2 Corruption Purged . | . . . . . . . Corruption Blocked . | . . . . . . . Effects 1 | . . . . . . 1 Message Errors 1 | . . . . . . 1 Overload Shots . | . . . . . . . Overflow Damage 117 | . 117 . . . . . Projectiles . | . . . . . . . Explosions 117 | . 117 . . . . . Melee . | . . . . . . . Knockbacks . | . . . . . . . Impact . | . . . . . . . Kinetic . | . . . . . . . Secondary . | . . . . . . . Self-Inflicted Damage 180 | . 160 . . . . 20 Shots 3 | . 3 . . . . . Rammed 10 | . . . . . . 10 Targets Rammed 10 | . . . . . . 10 Kicked . | . . . . . . . Crushed . | . . . . . . . Highest Temperature 384 | . 249 122 . . . 384 Average Temperature 142 | . 95 59 . . . 194 Received Heat Transfer 657 | . 63 56 . . . 538 Effects 2 | . . . . . . 2 Shutdowns 2 | . . . . . . 2 Siege Activations . | . . . . . . . Robots Corrupted 1 | . . . . . . 1 Combat Hostiles 1 | . . . . . . 1 Parts Fried . | . . . . . . . Impact Corruptions . | . . . . . . . Robots Melted . | . . . . . . . Combat Hostiles . | . . . . . . . Parts Melted 5 | . 2 3 . . . . Heat Transferred 1131 | . 821 260 . . . 50 Parts Sabotaged . | . . . . . . . Parts Stolen . | . . . . . . . Parts Stripped . | . . . . . . . Power Chain Reactions 2 | . 1 . . . . 1 Missiles Intercepted . | . . . . . . . Alert | -11 -10 -9 -8 -7 -6 -6 ------- Run | Scr Mat Mat Mat Fac Fac Ext Peak Influence 291 | . 291 99 50 19 7 45 Initial 39 | . . 39 35 19 7 2 Average 42 | . 110 59 48 19 7 11 Maximum Alert Level 1 | . 1 . . . . . Low Security (%) 91 | 100 62 100 100 100 100 100 Level 1 8 | . 37 . . . . . Level 2 . | . . . . . . . Level 3 . | . . . . . . . Level 4 . | . . . . . . . Level 5 . | . . . . . . . High Security . | . . . . . . . Max Security . | . . . . . . . Squads Dispatched 5 | . . 1 1 . 1 2 Investigation 1 | . . . . . . 1 Extermination . | . . . . . . . Reinforcement 4 | . . 1 1 . 1 1 Assault . | . . . . . . . Garrison . | . . . . . . . Intercept . | . . . . . . . Searches Triggered . | . . . . . . . Construction Impeded . | . . . . . . . Haulers Reinforced . | . . . . . . . Active Scanning Responses . | . . . . . . . Cargo Convoy Interrupts . | . . . . . . . Stealth | -11 -10 -9 -8 -7 -6 -6 --------- Run | Scr Mat Mat Mat Fac Fac Ext Distress Signals 6 | . 2 . 1 . . 3 Communications Jammed . | . . . . . . . Distress Signals . | . . . . . . . Times Spotted 32 | . 11 2 3 . 1 15 Peak Tracking Total 10 | . 5 2 3 . . 10 Tactical Retreats 4 | . . . . . . 4 Traps | -11 -10 -9 -8 -7 -6 -6 ------- Run | Scr Mat Mat Mat Fac Fac Ext Traps Triggered 7 | . 1 . . 1 . 5 Indirectly . | . . . . . . . Trap Hack Attempts . | . . . . . . . Triggered . | . . . . . . . Disarmed . | . . . . . . . Reprogrammed . | . . . . . . . Reused . | . . . . . . . Traps Extracted . | . . . . . . . Installed . | . . . . . . . Triggered . | . . . . . . . Machines | -11 -10 -9 -8 -7 -6 -6 ---------- Run | Scr Mat Mat Mat Fac Fac Ext Machines Disabled 2 | . 2 . . . . . Max in Single Turn 2 | . 2 . . . . . Machines Sabotaged . | . . . . . . . Garrisons Compromised . | . . . . . . . Overloaded Fab Kills . | . . . . . . . Hacking | -11 -10 -9 -8 -7 -6 -6 --------- Run | Scr Mat Mat Mat Fac Fac Ext Machines Accessed 2 | . . . . . 1 1 Terminals 2 | . . . . . 1 1 Fabricators . | . . . . . . . Repair Stations . | . . . . . . . Recycling Units . | . . . . . . . Scanalyzers . | . . . . . . . Garrison Access . | . . . . . . . Total Hacks 4 | . . . . . 1 3 Successful 2 | . . . . . 1 1 Failed 2 | . . . . . . 2 Catastrophic . | . . . . . . . Database Lockouts . | . . . . . . . Manual . | . . . . . . . Terminals 4 | . . . . . 1 3 Fabricators . | . . . . . . . Repair Stations . | . . . . . . . Recycling Units . | . . . . . . . Scanalyzers . | . . . . . . . Garrison Access . | . . . . . . . Terminal Hacks 2 | . . . . . 1 1 Open Door 2 | . . . . . 1 1 Fabricator Hacks . | . . . . . . . Repair Station Hacks . | . . . . . . . Recycling Unit Hacks . | . . . . . . . Scanalyzer . | . . . . . . . Garrison Access Hacks . | . . . . . . . Unauthorized Hacks . | . . . . . . . Terminals . | . . . . . . . Fabricators . | . . . . . . . Repair Stations . | . . . . . . . Recycling Units . | . . . . . . . Scanalyzers . | . . . . . . . Garrison Access . | . . . . . . . Data Cores Recovered . | . . . . . . . Used . | . . . . . . . Hacking Detections 1 | . . . . . . 1 Full Trace Events . | . . . . . . . Feedback Events . | . . . . . . . Feedback Blocked . | . . . . . . . Robot Schematics Acquired . | . . . . . . . Robots Built . | . . . . . . . Authchips . | . . . . . . . Time . | . . . . . . . Total Robot Build Rating . | . . . . . . . Part Schematics Acquired . | . . . . . . . Parts Built . | . . . . . . . Authchips . | . . . . . . . Time . | . . . . . . . Total Part Build Rating . | . . . . . . . Parts Repaired . | . . . . . . . Time . | . . . . . . . Parts Recycled . | . . . . . . . Recycled Matter . | . . . . . . . Retrieved Matter . | . . . . . . . Retrieved Components . | . . . . . . . Parts Scanalyzed . | . . . . . . . Part Schematics Acquired . | . . . . . . . Parts Damaged . | . . . . . . . Bothacking | -11 -10 -9 -8 -7 -6 -6 ------------ Run | Scr Mat Mat Mat Fac Fac Ext Used RIF Installer . | . . . . . . . Robots Hacked . | . . . . . . . Non-combat . | . . . . . . . Combat . | . . . . . . . Robot Hacks Applied . | . . . . . . . Relay Couplers Released . | . . . . . . . Fabnet Peak Effective % . | . . . . . . . Robots Rewired . | . . . . . . . Allies Hacked . | . . . . . . . Hacks Repelled . | . . . . . . . Allies | -11 -10 -9 -8 -7 -6 -6 -------- Run | Scr Mat Mat Mat Fac Fac Ext Total Allies 1 | . . . . . . 1 Largest Group 1 | . . . . . . 1 Highest-Rated Group 20 | . . . . . . 20 Highest-Rated Ally 20 | . . . . . . 20 Total Orders . | . . . . . . . Ally Attacks 1 | . . . . . . 1 Total Damage 23 | . . . . . . 23 Kills . | . . . . . . . Allies Corrupted . | . . . . . . . Allies Melted . | . . . . . . . Intel | -11 -10 -9 -8 -7 -6 -6 ------- Run | Scr Mat Mat Mat Fac Fac Ext Robot Analysis Total . | . . . . . . . Derelict Logs Recovered . | . . . . . . . Drone Launches . | . . . . . . . Drone Recoveries . | . . . . . . . Exploration | -11 -10 -9 -8 -7 -6 -6 ------------- Run | Scr Mat Mat Mat Fac Fac Ext Turns Passed 2084 | 109 482 260 122 202 181 728 Spaces Moved 1084 | 57 191 143 76 121 114 382 Core 34 | 8 . . . . . 26 Treads 982 | 40 191 143 76 121 114 297 Legs 9 | 9 . . . . . . Wheels 59 | . . . . . . 59 Hover . | . . . . . . . Flight . | . . . . . . . Fastest Speed 50 | 50 160 160 160 160 160 90 Average Speed 157 | 141 160 160 160 160 160 154 Slowest Speed 320 | 160 160 160 160 160 160 320 Overloaded Moves . | . . . . . . . Propulsion Burnouts . | . . . . . . . Robots Hopped . | . . . . . . . Cave-ins Triggered . | . . . . . . . Exploration Rate (%) 17 | 5 32 20 13 4 4 44 Regions Visited 6 Branch Regions 1 Pre-discovered Areas . | . . . . . . . Known Exits Taken . | . . . . . . . Unknown Exits Taken 6 | 1 1 1 1 1 1 . Scrap Searched . | . . . . . . . Spaces Dug . | . . . . . . . Terrain Destroyed 43 | . 37 . . . . 6 Melee . | . . . . . . . Projectile . | . . . . . . . AOE 43 | . 37 . . . . 6 Terrain Rammed . | . . . . . . . Walls Destroyed . | . . . . . . . Machines Disabled . | . . . . . . . Actions | -11 -10 -9 -8 -7 -6 -6 --------- Run | Scr Mat Mat Mat Fac Fac Ext Total 1407 | 88 345 164 77 130 113 490 Wait 168 | 10 117 15 . . . 26 Move 1078 | 56 190 142 75 120 113 382 Hop . | . . . . . . . Pick Up 33 | 11 10 1 1 3 . 7 Fast Attach . | . . . . . . . Attach 26 | 6 9 . 1 3 . 7 Detach 2 | 2 . . . . . . Swap 3 | . . 1 . 2 . . Drop 11 | 3 5 . . 2 . 1 Fire 37 | . 14 5 . . . 18 Melee . | . . . . . . . Ram 10 | . . . . . . 10 Kick . | . . . . . . . Crush . | . . . . . . . Escape Stasis 39 | . . . . . . 39 Rewire . | . . . . . . . Trap . | . . . . . . . Miscellaneous . | . . . . . . . Route ------- -11/Scrapyard -10/Materials -9/Materials -8/Materials -7/Factory -6/Factory -6/Extension History --------- Turn | Location | Event 11 | -11/Scrapyard | Discovered new exit (range 15) 110 | -11/Scrapyard | Entered Materials 318 | -10/Materials | Build established: Mutant 416 | -10/Materials | Discovered new exit (range 11) 592 | -10/Materials | Entered another Materials area 592 | -9/Materials | Evolved 2 slots: Power x1, Propulsion x1 836 | -9/Materials | Discovered new exit (range 10) 852 | -9/Materials | Entered another Materials area 852 | -8/Materials | Evolved 2 slots: Propulsion x1, Utility x1 950 | -8/Materials | Discovered new exit (range 15) 974 | -8/Materials | Entered Factory 974 | -7/Factory | Evolved 2 slots: Power x1, Utility x1 1170 | -7/Factory | Discovered new exit (range 4) 1176 | -7/Factory | Entered another Factory area 1176 | -6/Factory | Evolved 2 slots: Power x1, Propulsion x1 1344 | -6/Factory | Discovered new exit (range 10) 1357 | -6/Factory | Entered Extension 2014 | -6/Extension | Spotted B-75 Beast 2021 | -6/Extension | Spotted B-75 Beast 2027 | -6/Extension | Core integrity fell below 50% 2047 | -6/Extension | Core integrity fell below 20% 2049 | -6/Extension | Lost 14 parts (4p5n3u2w) 2068 | -6/Extension | Rescued a captive Derelict 2085 | -6/Extension | Destroyed by Y-54 Guardian with Flak Gun Last Messages --------------- Field strength at 65. Field strength at 59. Field strength at 53. Field strength at 47. Y-54 Guardian IFF system glitched. Field strength at 41. Field strength at 35. Field strength at 29. Field strength at 12. Field strength at 6. U-05 Engineer builds a Wall. Stasis field depleted. B|GB >B=IZE LA#ONCSY5O Connecting with Door Terminal... >>Open(Door) Sealed Heavy Doors opened. MH-YIA(b): "Free at last!" Y-54 Guardian misfires. MH-YIA(b) destroyed. Y-54 Guardian destroyed. Map ----- +----------------------------------------------------+ | ?????????????????????????????????????????????????? | | ?????????????????????????????????????????????????? | | ?????????????????????????????????????????????????? | | ?????????????????????????????????????????????????? | | ############?????????????????????????????????????? | | ^ #?????????????????????????????????????? | | * #?????????????????????????????????????? | | ^! ! #?????????????????????????????????????? | | !] #?????????????????????????????????????? | | # #?????????????????????????????????????? | | # ####??????????????????????????????????? | | # ! #????????? ????????????????????????? | | ####""T""#### #????????? ????????????????????????? | | ???#"""""#??# #????????? ????????????????????????? | | ???#######??# #????????? ????????????????????????? | | ????????????# #????????? ????????????????????????? | | ????????????# #????????? ????????????????????????? | | ????????????# #????????? ????????????????????????? | | ????????????# #????????# #???????????????????????? | | ????????????# #????????# #???????????????????????? | | ????????????# #????????# #???????????????????????? | | ????????????# #????????# #???????????????????????? | | ????????????# #????????# T???????????????????????? | | ??????????###%#????????# #???????????????????????? | | ??????????#T#%#????????#%#####???????????????????? | | ??????????" %#????????#=@ #???????????????????? | | ??????????### #????????#Y#T###???????????????????? | | ????????????# #????????#g###?????????????????????? | | ????????????# #????????# #???????????????????????? | | ????????????# #????????# #???????????????????????? | | ????????????#%#?#######" #???????????????????????? | | ??????????###%### "# ### ###?????????????????????? | | ??????????#""%" % ""#?????????????????????? | | ??????????# %" " " #?????????????????????? | | ??????????# % % #?????????????????????? | | ??????????# % %#?????????????????????? | | ########### #?????????????????????? | | = ????????????????? | | ??????????????? | | ????????????? | | ????????????? | | ????????????? | | ########### ###########???????????? | | ??????????# #?????????????????????? | | ??????????# #?????????????????????? | | ??????????# #?????????????????????? | | ??????????# #?????????????????????? | | ??????????######T#"""#######?????????????????????? | | ???????????????##????????????????????????????????? | | ?????????????????????????????????????????????????? | +----------------------------------------------------+ Best States ------------- Heat Dissipation 37 Energy Generation 41 Energy Capacity 950 Matter Stores 300 Matter Capacity 300 Sight Range 16 Terrain Scan Density 10 Resistance: KI 20 Resistance: TH 20 Resistance: EX 20 Resistance: EM 20 Resistance: I 20 Resistance: S 20 Resistance: P 20 Evasion (%) 45 Recoil Reduction 2 Offensive Hacking 10 Item Schematics ----------------- None Robot Schematics ------------------ None Fabricated ------------ Nothing Alien Tech Used ----------------- None Achievements -------------- Power Corrupts Use The Force Challenges ------------ None Game ------ Seed BurstMicroPick Manual? 0 Play Time 00:21:46 Cumulative 3.3 hours Start 2022.09.06 @ 16:07:48 End 2022.09.06 @ 16:32:21 Sessions 1 Manual Loads 0 Difficulty Adventurer Special Mode None Game No. 5 Rogue 0 Adventurer 5 Explorer 0 Win Type - Total 0 Types 0/0/0/0/0/0/0/0/0 Lore% 3 Gallery% 8 Achievement% 8 Wizard Run 0 Options --------- ASCII 0 Keyboard 0 Movement Mouse Keybinds 0 Fullscreen 1 Font 18/SmallcapsGlow Map View 76x50 Tactical HUD 0 Map Filters NONE Filters NONE Steam 1 RUN: cabb983f-3471-4362-87df-661f36518888